Cogmind - Beta 11.2 @@@ ROGUE MODE // 2022.12.25 @ 13:08:57 // Winter2022/Polymind Player: aperiodic Result: Destroyed by as-56722 with Assembled Heavy Rifle Performance ------------- Evolutions (0) 0 Regions Visited (2) 400 Robots Destroyed (0) 0 Value Destroyed (0) 0 Prototype IDs (0) 0 Alien Tech Used (0) 0 Bonus (580) 580 TOTAL SCORE: 880 Bonus ------- Polymind Skill 580 Cogmind --------- Core Integrity 0/250 Matter 100/100 Energy 45/50 System Corruption 0% Temperature Cool (0) Movement Hovering (60) Location -10/Mines Parts ------- > --- POWER (0) -------- (None) > --- PROPULSION (1) --- Assembled Hover Unit > --- UTILITY (0) ------ (None) > --- WEAPON (1) ------- Assembled Blade > --- INVENTORY (1) ---- (None) Peak State ------------ > --- POWER ------------ (None) > --- PROPULSION ------- Assembled Hover Unit > --- UTILITY ---------- (None) > --- WEAPON ----------- Assembled Blade > --- INVENTORY -------- (None) [Rating: 6] Favorites ----------- Power None Propulsion Assembled Hover Unit Hover Unit Assembled Hover Unit Utility None Weapon Assembled Blade Slashing Weapon Assembled Blade Build | -11 -10 -10 ------- Run | Scr Mat Min Slots Evolved . | . . . Power . | . . . Propulsion . | . . . Utility . | . . . Weapon . | . . . Parts Attached . | . . . Power . | . . . Engine . | . . . Core . | . . . Reactor . | . . . Propulsion . | . . . Treads . | . . . Leg . | . . . Wheel . | . . . Hover . | . . . Flight . | . . . Utility . | . . . Device . | . . . Storage . | . . . Processor . | . . . Hackware . | . . . Protection . | . . . Artifact . | . . . Weapon . | . . . Energy Gun . | . . . Energy Cannon . | . . . Ballistic Gun . | . . . Ballistic Cannon . | . . . Launcher . | . . . Special Weapon . | . . . Impact Weapon . | . . . Slashing Weapon . | . . . Piercing Weapon . | . . . Special Melee Weapon . | . . . Unidentified Prototypes . | . . . Parts Lost . | . . . Power . | . . . Propulsion . | . . . Utility . | . . . Weapon . | . . . Highest Loss Streak . | . . . To Critical Strikes . | . . . Average Slot Usage (%) 7 | . . 33 Hover 3 | . . 16 Slashing Weapon 3 | . . 16 Naked Turns 122 | . 101 21 Heaviest Build 2 | . . 2 Greatest Support 8 | 3 3 8 Greatest Overweight (x) . | . . . Average Overweight (x) . | . . . Largest Inventory Capacity 1 | . . 1 Average Capacity . | . . . Most Carried . | . . . Average Carried . | . . . Final Capacity 1 | . . 1 Final Carried . | . . . Class Distribution -------------------- 92% | Cogmind 7% | Assembled Dominant Class ---------------- Cogmind | -10/Materials Cogmind | -10/Mines Resources | -11 -10 -10 ----------- Run | Scr Mat Min Matter Collected . | . . . Remotely . | . . . Salvage Created 19 | . . 19 Parts . | . . . Haulers Intercepted . | . . . Recyclers Shooed . | . . . Parts Field Recycled . | . . . Retrieved Matter . | . . . Parts Self-Destructed . | . . . Prevented . | . . . Kills | -11 -10 -10 ------- Run | Scr Mat Min Combat Hostiles Destroyed 1 | . . 1 Melee 1 | . . 1 Classes Destroyed 1 | . . 1 Assembled 1 | . . 1 Best Kill Streak 1 | . . 1 Combat Bots Only 1 | . . 1 Max Kills in Single Turn 1 | . . 1 Gunslinging . | . . . Exploded . | . . . Melee 1 | . . 1 Uniques/NPCs Destroyed . | . . . Combat | -11 -10 -10 -------- Run | Scr Mat Min Damage Taken 271 | . . 271 Core 260 | . . 260 Absorbed by Shields . | . . . Core Remaining (%) 100 | 100 . . Volleys Fired . | . . . Largest . | . . . Hottest . | . . . Shots Fired . | . . . Gun . | . . . Cannon . | . . . Launcher . | . . . Special . | . . . Kinetic . | . . . Thermal . | . . . Explosive . | . . . Electromagnetic . | . . . Robot Hit Streak . | . . . Robot Miss Streak . | . . . Penetration Max . | . . . Secondary Targets . | . . . Shots Hit Robots 2 | . . 2 Core Hits 1 | . . 1 Critical Kills . | . . . Critical Parts Destroyed . | . . . Critical Strikes . | . . . Melee Attacks 3 | . . 3 Impact . | . . . Slashing 3 | . . 3 Piercing . | . . . Sneak Attacks . | . . . Combat Hostiles . | . . . Follow-up Attacks . | . . . Damage Inflicted 101 | . . 101 Guns . | . . . Cannons . | . . . Explosions . | . . . Melee 101 | . . 101 Ramming . | . . . Kinetic . | . . . Thermal . | . . . Explosive . | . . . Electromagnetic . | . . . Impact . | . . . Slashing 101 | . . 101 Piercing . | . . . Highest Corruption . | . . . Average Corruption . | . . . Corruption Purged . | . . . Corruption Blocked . | . . . Overload Shots . | . . . Overflow Damage 6 | . . 6 Projectiles . | . . . Explosions . | . . . Melee 6 | . . 6 Knockbacks . | . . . Impact . | . . . Kinetic . | . . . Secondary . | . . . Self-Inflicted Damage . | . . . Shots . | . . . Rammed . | . . . Targets Rammed . | . . . Kicked . | . . . Crushed . | . . . Highest Temperature . | . . . Average Temperature . | . . . Received Heat Transfer 115 | . . 115 Siege Activations . | . . . Robots Corrupted . | . . . Combat Hostiles . | . . . Parts Fried . | . . . Impact Corruptions . | . . . Robots Melted . | . . . Combat Hostiles . | . . . Parts Melted . | . . . Heat Transferred . | . . . Parts Sabotaged . | . . . Parts Stolen . | . . . Parts Stripped . | . . . Power Chain Reactions . | . . . Missiles Intercepted . | . . . Alert | -11 -10 -10 ------- Run | Scr Mat Min Peak Influence 20 | . 20 7 Initial 7 | . . 7 Average 4 | . 4 5 Maximum Alert Level . | . . . Low Security (%) 100 | 100 100 100 Level 1 . | . . . Level 2 . | . . . Level 3 . | . . . Level 4 . | . . . Level 5 . | . . . High Security . | . . . Max Security . | . . . Squads Dispatched . | . . . Investigation . | . . . Extermination . | . . . Reinforcement . | . . . Assault . | . . . Garrison . | . . . Intercept . | . . . Searches Triggered . | . . . Construction Impeded . | . . . Haulers Reinforced . | . . . Active Scanning Responses . | . . . Cargo Convoy Interrupts . | . . . Stealth | -11 -10 -10 --------- Run | Scr Mat Min Distress Signals . | . . . Communications Jammed . | . . . Distress Signals . | . . . Times Spotted 26 | . 1 25 Peak Tracking Total 17 | . 1 17 Tactical Retreats . | . . . Traps | -11 -10 -10 ------- Run | Scr Mat Min Traps Triggered . | . . . Indirectly . | . . . Trap Hack Attempts . | . . . Triggered . | . . . Disarmed . | . . . Reprogrammed . | . . . Reused . | . . . Traps Extracted . | . . . Installed . | . . . Triggered . | . . . Machines | -11 -10 -10 ---------- Run | Scr Mat Min Machines Disabled . | . . . Max in Single Turn . | . . . Machines Sabotaged . | . . . Garrisons Compromised . | . . . Overloaded Fab Kills . | . . . Hacking | -11 -10 -10 --------- Run | Scr Mat Min Machines Accessed 3 | . 3 . Terminals 3 | . 3 . Fabricators . | . . . Repair Stations . | . . . Recycling Units . | . . . Scanalyzers . | . . . Garrison Access . | . . . Total Hacks 8 | . 8 . Successful 1 | . 1 . Failed 7 | . 7 . Catastrophic 1 | . 1 . Database Lockouts . | . . . Manual 8 | . 8 . Terminals 8 | . 8 . Fabricators . | . . . Repair Stations . | . . . Recycling Units . | . . . Scanalyzers . | . . . Garrison Access . | . . . Terminal Hacks . | . . . Fabricator Hacks . | . . . Repair Station Hacks . | . . . Recycling Unit Hacks . | . . . Scanalyzer . | . . . Garrison Access Hacks . | . . . Unauthorized Hacks 1 | . 1 . Terminals 1 | . 1 . Botnet 1 | . 1 . Fabricators . | . . . Repair Stations . | . . . Recycling Units . | . . . Scanalyzers . | . . . Garrison Access . | . . . Data Cores Recovered . | . . . Used . | . . . Hacking Detections 3 | . 3 . Full Trace Events . | . . . Feedback Events . | . . . Feedback Blocked . | . . . Robot Schematics Acquired . | . . . Robots Built . | . . . Authchips . | . . . Time . | . . . Total Robot Build Rating . | . . . Part Schematics Acquired . | . . . Parts Built . | . . . Authchips . | . . . Time . | . . . Total Part Build Rating . | . . . Parts Repaired . | . . . Time . | . . . Parts Recycled . | . . . Recycled Matter . | . . . Retrieved Matter . | . . . Retrieved Components . | . . . Parts Scanalyzed . | . . . Part Schematics Acquired . | . . . Parts Damaged . | . . . Bothacking | -11 -10 -10 ------------ Run | Scr Mat Min Used RIF Installer . | . . . Robots Hacked . | . . . Non-combat . | . . . Combat . | . . . Robot Hacks Applied . | . . . Relay Couplers Released . | . . . Fabnet Peak Effective % . | . . . Robots Rewired . | . . . Allies Hacked . | . . . Hacks Repelled . | . . . Allies | -11 -10 -10 -------- Run | Scr Mat Min Total Allies . | . . . Largest Group . | . . . Highest-Rated Group . | . . . Highest-Rated Ally . | . . . Total Orders . | . . . Ally Attacks . | . . . Total Damage . | . . . Kills . | . . . Allies Corrupted . | . . . Allies Melted . | . . . Intel | -11 -10 -10 ------- Run | Scr Mat Min Robot Analysis Total 1 | . . 1 Derelict Logs Recovered . | . . . Drone Launches . | . . . Drone Recoveries . | . . . Exploration | -11 -10 -10 ------------- Run | Scr Mat Min Turns Passed 143 | 11 101 31 Spaces Moved 267 | 22 202 43 Core 258 | 22 202 34 Treads . | . . . Legs . | . . . Wheels . | . . . Hover 9 | . . 9 Flight . | . . . Fastest Speed 50 | 50 50 50 Average Speed 50 | 50 50 52 Slowest Speed 60 | 50 50 60 Overloaded Moves . | . . . Propulsion Burnouts . | . . . Robots Hopped . | . . . Cave-ins Triggered . | . . . Exploration Rate (%) 16 | 3 37 10 Regions Visited 2 Branch Regions 1 Pre-discovered Areas . | . . . Known Exits Taken . | . . . Unknown Exits Taken 2 | 1 1 . Scrap Searched . | . . . Spaces Dug . | . . . Terrain Destroyed . | . . . Melee . | . . . Projectile . | . . . AOE . | . . . Terrain Rammed . | . . . Walls Destroyed . | . . . Machines Disabled . | . . . Actions | -11 -10 -10 --------- Run | Scr Mat Min Total 271 | 21 201 49 Wait 3 | . . 3 Move 265 | 21 201 43 Hop . | . . . Pick Up . | . . . Fast Attach . | . . . Attach . | . . . Detach . | . . . Swap . | . . . Drop . | . . . Fire . | . . . Melee 3 | . . 3 Ram . | . . . Kick . | . . . Crush . | . . . Escape Stasis . | . . . Rewire . | . . . Trap . | . . . Miscellaneous . | . . . Route ------- -11/Scrapyard -10/Materials -10/Mines History --------- Turn | Location | Event 5 | -11/Scrapyard | Discovered new exit (range 14) 12 | -11/Scrapyard | Entered Materials 107 | -10/Materials | Discovered new exit (range 12) 113 | -10/Materials | Entered Mines 114 | -10/Mines | Assembled infested the area 124 | -10/Mines | Core integrity fell below 50% 144 | -10/Mines | Core integrity fell below 20% 144 | -10/Mines | Destroyed by as-56722 with Assembled Heavy Rifle Last Messages --------------- Trojan loaded successfully. Testing... Terminal linked with 0 systems. Awaiting botnet instructions. 00032_ Connecting with Terminal... 00097_ K-01 Serf collects debris. 00107_ EXIT=FOUND 00109_ K-01 Serf collects debris. 00110_ O-16 Technician: "IFF HANDSHAKE FAILED. SECURING TERMINAL." LOCATION=UNKNOWN GOAL=ESCAPE Something is scanning the area. 00114_ ALERT: Infestation in the mines, dispatching Demolisher response squad. 00124_ as-49217 destroyed. 00134_ Took control of as-21025. 00134_ Extracted analysis data for Assembled. 00135_ G-34 Mercenary destroyed. 00139_ as-40151 destroyed. 00141_ Destroyed Asb. Hover Unit. Map ----- +----------------------------------------------------+ | ??????????????????????????????????????????????? | | ??????????????????????????????????????????????? | | ??????????????????????????????????????????????? | | ?????????????????????????#????????????????????? | | ????????????????????????? ????????????????????? | | ????????????????????????? ????????????????????? | | ????????????????????????? ????????????????????? | | ????????????????????????? ????????????????????? | | ????????????????????????? ????????????????????? | | ????????????????????????? ##??????????????????? | | ????????????????????????? ??????????????????? | | ????????????????????????? #??????????????????? | | ?????????????????????????# #??? #?????????????? | | ?????????????????????????# #?? #?????????????? | | ?????????????????????????# ## ???????????????? | | ?????????????????????????# ?????????????????? | | ?????????????????????????#a#??????#???????????? | | ?????????????????????????#a#?????? ##?????????? | | ??????????????????????#### ###???? ?????????? | | ??????????????????????# #???? ?????????? | | ??????????????????????# #???? ?????????? | | ??????????????????????# aa #???? ?????????? | | ??????????????????????# #???? ?????????? | | ??????????????????????# #???? ?????????? | | ??????????????????????## ####???? ##????????? | | ????????????????????#### a#######? #????????? | | ????????????????????# =a! #? #????????? | | ????????????????????# a% % #?# #????????? | | ????????????????????# aa%! #?# #????????? | | ????????????????????# aa=[%= ### #????????? | | ????????????????????# a = % #????????? | | ???????????????????#T """ """ #????????? | | ???????????????????## """ """ ######????????? | | ????????????????????# """ """ #?????????????? | | ????????????????????#############?????????????? | | ??????????????????????????????????????????????? | | | | | | | | | | | | | | | | | | | | | | | | | | | | | +----------------------------------------------------+ Best States ------------- Heat Dissipation 35 Energy Generation 20 Energy Capacity 100 Matter Stores 100 Matter Capacity 100 Sight Range 16 Terrain Scan Density 10 Evasion (%) 50 Item Schematics ----------------- None Robot Schematics ------------------ None Fabricated ------------ Nothing Alien Tech Used ----------------- None Achievements -------------- None Challenges ------------ None Polymind | -11 -10 -10 ---------- Run | Scr Mat Min Robots Controlled 1 | . . 1 Combat Hostiles 1 | . . 1 Allies . | . . . Classes Controlled 1 | . . 1 Average Host Suspicion . | . . . Unsuspicious Activity 38 | . . 38 Returns to Shadow . | . . . Fuzzy Dispatches . | . . . Protomatter Created 52 | . . 52 Used 16 | . . 16 Decayed 8 | . . 8 Highest Spend 16 | . . 16 Top 5 Hosts by Kills: as-21025 (-10/Mines: 1) Game ------ Seed ChipCorruptionBoregun Manual? 0 Play Time 00:04:47 Cumulative 657.2 hours Start 2022.12.25 @ 13:04:13 End 2022.12.25 @ 13:08:57 Sessions 1 Manual Loads 0 Difficulty Rogue Special Mode Winter2022/Polymind Game No. 212 Rogue 208 Adventurer 4 Explorer 0 Win Type - Total 20 Types 9/2/6/0/0/0/1/2/0 Lore% 88 Gallery% 89 Achievement% 77 Wizard Run 0 Options --------- ASCII 1 Keyboard 0 Movement Arrows Keybinds 0 Fullscreen 1 Font 18/SmallcapsGlow Map View 76x50 Tactical HUD 1 Map Filters NONE Filters NONE Steam 1 RUN: d94a2199-fe26-4aa5-b0ca-8456124e95fd